Workbook

Sheet 여수시
A1: 여수시 자동차 등록 현황
I2: (단위 : 대)
A3: 구분 | C3: 합 계 | D3: 자 동 차 | I3: 이 륜 자동차
D4: 소 계 | E4: 승용차 | F4: 승합차 | G4: 화물차 | H4: 특수차
A5: 2025년1월말 | B5: 여수 | C5: =SUM(D5+I5) -> 156,752 | D5: =SUM(E5:H5) -> 146,961 | E5: 116,295 | F5: 3,958 | G5: 25,428 | H5: 1,280 | I5: 9,791
B6: 전남 | C6: =D6+I6 -> 1,391,753 | D6: =SUM(E6:H6) -> 1,280,933 | E6: 978,060 | F6: 35,204 | G6: 258,148 | H6: 9,521 | I6: 110,820
B7: 전국 | C7: 28,567,042 | D7: 26,325,761 | E7: 21,799,448 | F7: 664,509 | G7: 3,717,583 | H7: 144,221 | I7: 2,241,281
A8: 2025년2월말 | B8: 여수 | C8: =SUM(D8+I8) -> 155,889 | D8: =SUM(E8:H8) -> 146,093 | E8: 116,462 | F8: 3,943 | G8: 24,408 | H8: 1,280 | I8: 9,796
B9: 전남 | C9: =D9+I9 -> 1,394,915 | D9: =SUM(E9:H9) -> 1,284,150 | E9: 981,120 | F9: 35,059 | G9: 258,427 | H9: 9,544 | I9: 110,765
B10: 전국 | C10: 28,579,583 | D10: 26,337,666 | E10: 21,814,940 | F10: 661,699 | G10: 3,716,535 | H10: 144,492 | I10: 2,241,917
A11: 2025년3월말 | B11: 여수 | C11: =D11+I11 -> 156,939 | D11: =SUM(E11:H11) -> 147,158 | E11: 116,544 | F11: 3,934 | G11: 25,396 | H11: 1,284 | I11: 9,781
B12: 전남 | C12: =SUM(D12,I12) -> 1,397,654 | D12: 1,286,891 | E12: 984,246 | F12: 34,875 | G12: 258,187 | H12: 9,583 | I12: 110,763
B13: 전국 | C13: 28,596,852 | D13: =SUM(E13:H13) -> 26,352,172 | E13: 21,837,979 | F13: 658,008 | G13: 3,711,411 | H13: 144,774 | I13: 2,244,680
A14: 2025년4월말 | B14: 여수 | C14: 156,694 | D14: =SUM(E14:H14) -> 146,923 | E14: 116,459 | F14: 3,907 | G14: 25,268 | H14: 1,289 | I14: 9,771
B15: 전남 | C15: 1,401,525 | D15: =SUM(E15:H15) -> 1,290,707 | E15: 988,410 | F15: 34,785 | G15: 257,918 | H15: 9,594 | I15: 110,818
B16: 전국 | C16: 28,605,600 | D16: 26,357,539 | E16: 21,855,843 | F16: 653,134 | G16: 3,703,646 | H16: 144,916 | I16: 2,248,061
A17: 2025년5월말 | B17: 여수 | C17: 156,708 | D17: =SUM(E17:H17) -> 146,899 | E17: 116,514 | F17: 3,882 | G17: 25,220 | H17: 1,283 | I17: 9,809
B18: 전남 | C18: 1,405,258 | D18: 1,294,428 | E18: 992,185 | F18: 34,718 | G18: 257,940 | H18: 9,585 | I18: 110,830
B19: 전국 | C19: 28,630,694 | D19: 26,379,563 | E19: 21,882,450 | F19: 650,353 | G19: 3,701,633 | H19: 145,127 | I19: 2,251,131
A20: 2025년6월말 | B20: 여수 | C20: =SUM(D20,I20) -> 156,616 | D20: 146,875 | E20: 116,493 | F20: 3,875 | G20: 25,221 | H20: 1,286 | I20: 9,741
B21: 전남 | C21: 1,407,578 | D21: 1,297,859 | E21: 995,500 | F21: 34,711 | G21: 258,028 | H21: 9,620 | I21: 109,719
B22: 전국 | C22: 28,653,764 | D22: 26,408,276 | E22: 21,913,860 | F22: 648,127 | G22: 3,700,835 | H22: 145,454 | I22: 2,245,488
A23: 2025년7월말 | B23: 여수 | C23: =SUM(D23,I23) -> 156,674 | D23: =SUM(E23:H23) -> 146,841 | E23: 116,459 | F23: 3,855 | G23: 25,236 | H23: 1,291 | I23: 9,833
B24: 전남 | C24: 1,410,813 | D24: 1,299,924 | E24: 997,660 | F24: 34,551 | G24: 258,068 | H24: 9,645 | I24: 110,889
B25: 전국 | C25: 28,682,504 | D25: 26,425,398 | E25: 21,933,663 | F25: 645,507 | G25: 3,700,381 | H25: 145,847 | I25: 2,257,106
A26: 2025년8월말 | B26: 여수 | C26: =SUM(D26,I26) -> 156,627 | D26: =SUM(E26:H26) -> 146,774 | E26: 116,418 | F26: 3,846 | G26: 25,218 | H26: 1,292 | I26: 9,853
B27: 전남 | C27: 1,411,686 | D27: 1,300,693 | E27: 998,554 | F27: 34,383 | G27: 258,111 | H27: 9,645 | I27: 110,993
B28: 전국 | C28: 28,696,008 | D28: 26,434,692 | E28: 21,946,016 | F28: 642,956 | G28: 3,699,683 | H28: 146,037 | I28: 2,261,316
A29: 2025년9월말 | B29: 여수 | C29: =D29+I29 -> 156,558 | D29: =SUM(E29:H29) -> 146,709 | E29: 116,382 | F29: 3,833 | G29: 25,203 | H29: 1,291 | I29: 9,849
B30: 전남 | C30: 1,414,123 | D30: 1,303,107 | E30: 1,001,015 | F30: 34,215 | G30: 258,220 | H30: 9,657 | I30: 111,016
B31: 전국 | C31: 28,723,678 | D31: 26,456,457 | E31: 21,970,426 | F31: 640,215 | G31: 3,699,477 | H31: 146,339 | I31: 2,267,221
A32: 2025년10월말 | B32: 여수 | C32: =D32+I32 -> 156,472 | D32: =SUM(E32:H32) -> 146,616 | E32: 116,300 | F32: 3,828 | G32: 25,201 | H32: 1,287 | I32: 9,856
B33: 전남 | C33: 1,415,915 | D33: =SUM(E33:H33) -> 1,304,845 | E33: 1,002,700 | F33: 34,160 | G33: 258,323 | H33: 9,662 | I33: 111,070
B34: 전국 | C34: 28,731,336 | D34: 26,462,222 | E34: 21,978,793 | F34: 638,095 | G34: 3,698,693 | H34: 146,641 | I34: 2,269,114
A35: 2025년11월말 | B35: 여수 | C35: 156,420 | D35: =SUM(E35:H35) -> 146,583 | E35: 116,264 | F35: 3,819 | G35: 25,215 | H35: 1,285 | I35: 9,837
B36: 전남 | C36: 1,419,492 | D36: =SUM(E36:H36) -> 1,308,447 | E36: 1,006,110 | F36: 34,091 | G36: 258,531 | H36: 9,715 | I36: 111,045
B37: 전국 | C37: 28,758,520 | D37: =SUM(E37:H37) -> 26,489,839 | E37: 22,009,035 | F37: 636,056 | G37: 3,697,813 | H37: 146,935 | I37: 2,268,681
